[Event "Austrian Bundesliga 2023-24"]
[Site "Austria"]
[Date "2024.03.24"]
[Round "11.18"]
[White "Ciolek, Andreas"]
[Black "Platzgummer, Fabian"]
[Result "1/2-1/2"]
[ECO "D11"]
[WhiteElo "2302"]
[BlackElo "2304"]
[Annotator "RC"]
[PlyCount "123"]
[EventDate "2023.10.21"]
[EventType "team-tourn"]
[EventCountry "AUT"]
[SourceTitle "playchess.com"]
[Source "ChessBase"]
[SourceQuality "1"]
[TimeControl "40/5400+30:1800+30"]

1. d4 {[%emt 0:00:03]} d5 {[%emt 0:00:09]} 2. c4 {[%emt 0:00:12]} c6 {[%emt 0:00:24]} 3. Nf3 {[%emt 0:00:11]} Nf6 {[%emt 0:00:09]} 4. Qc2 {[%emt 0:00:07]} g6 {[%emt 0:00:44]} 5. Bf4 {[%emt 0:00:25]} Bg7 {[%emt 0:00:13]} 6. e3 {[%emt 0:06:33]} O-O {[%emt 0:03:44]} 7. Nc3 {[%emt 0:03:07]} Bf5 {[%emt 0:02:23]} 8. Qb3 {[%emt 0:01:10]} Qb6 {[%emt 0:00:25]} 9. h3 {[%emt 0:05:06]} dxc4 {[%emt 0:09:40]} 10. Bxc4 {[%emt 0:01:13]} Qxb3 {[%emt 0:00:06]} 11. Bxb3 {[%emt 0:01:16]} Na6 {[%emt 0:11:09]} 12. g4 {[%emt 0:05:12]} Be4 {[%emt 0:04:23]} 13. Nxe4 {[%emt 0:01:42]} Nxe4 {[%emt 0:00:05]} 14. Ke2 {[%emt 0:06:10]} Nb4 {[%emt 0:05:25]} 15. Rhd1 {[%emt 0:05:34]} Rfd8 {[%emt 0:10:27]} 16. Ne5 {[%emt 0:06:41]} e6 {[%emt 0:05:46]} 17. f3 {[%emt 0:03:03]} Nf6 {[%emt 0:00:38]} 18. Rac1 {[%emt 0:01:19]} Nbd5 {[%emt 0:11:44]} 19. Bg3 {[%emt 0:01:13]} Bh6 {[%emt 0:00:21]} 20. Bf2 {[%emt 0:02:12]} Nd7 {[%emt 0:02:27]} 21. Nd3 {[%emt 0:05:23]} Bf8 {[%emt 0:09:35]} 22. a3 {[%emt 0:02:46]} Bd6 {[%emt 0:00:33]} 23. h4 {[%emt 0:03:49]} Rac8 {[%emt 0:02:13]} 24. Rc2 {[%emt 0:01:14]} h6 {[%emt 0:03:23]} 25. Ba2 {[%emt 0:04:15]} g5 {[%emt 0:01:22]} 26. Rh1 {[%emt 0:05:17]} Kg7 {[%emt 0:00:10]} 27. hxg5 {[%emt 0:02:15]} hxg5 {[%emt 0:00:06]} 28. Rh5 {[%emt 0:00:15]} Kg6 {[%emt 0:03:56]} 29. Rc1 {[%emt 0:04:40]} N7f6 {[%emt 0:00:21]} 30. Rh3 {[%emt 0:03:24]} Rh8 {[%emt 0:01:05]} 31. Rch1 {[%emt 0:00:18]} Kg7 {[%emt 0:01:06]} 32. Rxh8 {[%emt 0:03:34]} Rxh8 {[%emt 0:00:04]} 33. Rxh8 {[%emt 0:00:17]} Kxh8 {[%emt 0:00:02]} 34. e4 {[%emt 0:01:14]} Nf4+ {[%emt 0:00:17]} 35. Nxf4 {[%emt 0:00:06]} Bxf4 {[%emt 0:00:10]} 36. d5 {[%emt 0:01:31]} cxd5 {[%emt 0:09:09]} 37. exd5 {[%emt 0:01:58]} Nxd5 {[%emt 0:00:13]} 38. Bxa7 {[%emt 0:01:22]} Be5 {[%emt 0:01:25]} 39. Bxd5 {[%emt 0:01:26]} exd5 {[%emt 0:00:06]} 40. Kd3 {[%emt 0:00:00]} Kg7 {[%emt 0:00:00]} 41. Bd4 {[%emt 0:05:50]} f6 {[%emt 0:03:52]} 42. a4 {[%emt 0:02:04]} Kf7 {[%emt 0:00:41]} 43. b4 {[%emt 0:03:51]} Ke6 {[%emt 0:06:14]} 44. a5 {[%emt 0:00:55]} Kd7 {[%emt 0:00:14]} 45. b5 {[%emt 0:00:21]} Kc7 {[%emt 0:01:00]} 46. Bc5 {[%emt 0:02:38]} Kb8 {[%emt 0:01:59]} 47. a6 {[%emt 0:01:02]} Ka8 {[%emt 0:05:54]} 48. Kc2 {[%emt 0:04:30]} Bc7 {[%emt 0:02:03]} 49. Bd4 {[%emt 0:04:28]} Be5 {[%emt 0:00:37]} 50. Kc3 {[%emt 0:00:15]} Kb8 {[%emt 0:02:17]} 51. a7+ {[%emt 0:13:10]} Ka8 {[%emt 0:00:04]} 52. Bxe5 {[%emt 0:06:47]} fxe5 {[%emt 0:00:19]} 53. b6 {[%emt 0:00:05]} d4+ {[%emt 0:00:31]} 54. Kd2 {[%emt 0:02:13]} d3 {[%emt 0:00:08]} 55. Kc3 {[%emt 0:01:42]} e4 {[%emt 0:02:17]} 56. f4 {[%emt 0:00:11]} e3 {[%emt 0:00:06]} 57. Kxd3 {[%emt 0:00:48]} e2 {[%emt 0:00:04]} 58. Kd2 {[%emt 0:00:28]} e1=Q+ {[%emt 0:00:30]} 59. Kxe1 {[%emt 0:00:03]} gxf4 {[%emt 0:00:05]} 60. g5 {[%emt 0:00:06]} f3 {[%emt 0:00:04]} 61. g6 {[%emt 0:00:05]} f2+ {[%emt 0:00:05]} 62. Kf1 {[%emt 0:00:10]} 1/2-1/2

[Event "Austrian Bundesliga 2023-24"]
[Site "Austria"]
[Date "2024.03.24"]
[Round "11.19"]
[White "Brkic, Ante"]
[Black "Georgiadis, Nico"]
[Result "1-0"]
[ECO "B90"]
[WhiteElo "2633"]
[BlackElo "2537"]
[Annotator "TA"]
[PlyCount "73"]
[EventDate "2023.10.21"]
[EventType "team-tourn"]
[EventCountry "AUT"]
[SourceTitle "playchess.com"]
[Source "ChessBase"]
[SourceQuality "1"]
[TimeControl "40/5400+30:1800+30"]

{[%evp 19,73,23,18,21,30,38,35,21,28,42,22,29,31,35,24,14,32,27,34,18,33,42,39,38,37,35,62,28,72,54,64,56,148,141,113,119,261,208,394,337,409,400,405,370,368,360,350,324,301,218,447,450,436,430,603,601]} 1. e4 {[%emt 0:00:02]} c5 {[%emt 0:00:06]} 2. Nf3 {[%emt 0:00:08]} d6 {[%emt 0:00:06]} 3. d4 {[%emt 0:00:06]} cxd4 {[%emt 0:00:06]} 4. Nxd4 {[%emt 0:00:04]} Nf6 {[%emt 0:00:08]} 5. Nc3 {[%emt 0:00:05]} a6 {[%emt 0:00:05]} 6. Be3 {[%emt 0:00:50]} e5 {[%emt 0:00:07]} 7. Nb3 {[%emt 0:00:06]} Be6 {[%emt 0:00:06]} 8. f3 {[%emt 0:00:10]} Nbd7 {[%emt 0:00:42]} 9. g4 {[%emt 0:00:22][%cal Bg2g4,Bg4g5][%mdl 32]} Nb6 {[%emt 0:00:44]} 10. g5 {[%emt 0:01:24]} Nh5 {[%emt 0:00:28]} 11. Qd2 {[%emt 0:00:09]} Rc8 {[%emt 0:03:19]} 12. O-O-O {[%emt 0:01:30]} Be7 {[%emt 0:00:27]} 13. Kb1 {[%emt 0:00:07] White is slightly better.} Qc7 {[%emt 0:02:52]} 14. Qf2 {[%emt 0:13:59]} Nc4 {[%emt 0:00:26]} 15. Bxc4 {[%emt 0:00:06]} Qxc4 {[%emt 0:04:35]} 16. Nd5 {[%emt 0:27:19]} Bxd5 {[%emt 0:02:32]} 17. Rxd5 {[%emt 0:00:19]} O-O {[%emt 0:08:09]} 18. Rg1 {[%emt 0:11:17]} g6 {[%emt 0:12:38]} 19. Qd2 {[%emt 0:13:04]} f6 {[%emt 0:06:36]} 20. gxf6 {[%emt 0:01:04]} Nxf6 {[%emt 0:01:35]} 21. Rd3 {[%emt 0:00:05]} Qe6 {[%emt 0:10:06]} 22. Bg5 {[%emt 0:02:39]} Rc7 {[%emt 0:13:42]} 23. Nc1 {[%emt 0:03:26]} Rc6 {[%emt 0:08:34]} 24. Bxf6 {[%emt 0:04:36]} Rxf6 {[%emt 0:00:33]} 25. Ne2 {[%emt 0:01:47]} Qh3 {[%emt 0:05:29] [#]} ({Black should play} 25... Rc8 $14) 26. f4 $1 $16 {[%emt 0:02:28]} Qxh2 {[%emt 0:00:58]} 27. f5 {[%emt 0:00:12]} Bd8 {[%emt 0:07:27] This move loses the game for Black.} (27... d5 $16) 28. Rdg3 {[%emt 0:03:00][%cal Od2d1] Strongly threatening Qd1!} Kg7 $2 {[%emt 0:04:47]} (28... Bb6 {might work better.}) 29. Qd3 $18 {[%emt 0:03:21] Rh3 is the strong threat.} Bb6 {[%emt 0:00:05]} 30. Rf1 {[%emt 0:01:02]} Kh8 {[%emt 0:06:09]} 31. Rh3 {[%emt 0:04:23]} Qg2 {[%emt 0:00:04]} 32. Rfh1 {[%emt 0:00:06]} Rc7 {[%emt 0:00:38]} 33. Nc3 {[%emt 0:04:45][%cal Be2c3,Bc3d5,Bd5f4][%mdl 32] [#] Hoping for Nd5.} gxf5 {[%emt 0:00:05]} 34. Nd5 $40 {[%emt 0:00:45][%mdl 128] White attacks with force.} Rg6 {[%emt 0:01:15]} (34... fxe4 35. Qd1 Rf3) 35. a3 {[%emt 0:01:16][%cal Od5c7] White is clearly winning.} (35. Nxb6 $2 {perishes.} Rg3 36. Qd1 (36. Rxg3 $2 {is a self mate.} Qxh1+) (36. Qxg3 $2 Qxc2+ 37. Ka1 Qc1+ 38. Rxc1 Rxc1#) 36... Rxh3 $19) 35... fxe4 {[%emt 0:00:56]} 36. Qb3 {[%emt 0:00:39]} Rf7 {[%emt 0:00:15]} (36... Rcg7 $142 37. Qxb6 (37. Nxb6 Rg3 $16) 37... Rd7) 37. Nf4 {[%emt 0:01:32] Weighted Error Value: White=0.12 (very precise) /Black=0.35.  Mistake:       	---       	Black=5      Inaccurate:     	White=1     	Black=1      OK:         	White=16    	Black=11     Best:        	---       	Black=1} 1-0

[Event "Austrian Bundesliga 2023-24"]
[Site "Austria"]
[Date "2024.03.24"]
[Round "11.20"]
[White "Deuer, Marius"]
[Black "Martinovic, Sasa"]
[Result "1/2-1/2"]
[ECO "E48"]
[WhiteElo "2430"]
[BlackElo "2558"]
[Annotator "TA"]
[PlyCount "62"]
[EventDate "2023.10.21"]
[EventType "team-tourn"]
[EventCountry "AUT"]
[SourceTitle "playchess.com"]
[Source "ChessBase"]
[SourceQuality "1"]
[TimeControl "40/5400+30:1800+30"]

{[%evp 11,62,10,8,-12,0,-13,-18,-4,-13,-37,-11,-20,-18,-2,-15,-16,-1,-5,0,-16,0,0,-6,0,0,-10,-9,-25,-35,-43,-2,-14,0,0,0,0,0,0,0,0,0,-10,0,0,0,0,0,0,0,0,0,0,16]} 1. d4 {[%emt 0:00:03]} Nf6 {[%emt 0:00:04]} 2. c4 {[%emt 0:00:05]} e6 {[%emt 0:00:04]} 3. Nc3 {[%emt 0:00:04]} Bb4 {[%emt 0:00:05]} 4. e3 {[%emt 0:00:06]} O-O {[%emt 0:00:07]} 5. Bd3 {[%emt 0:00:21]} d5 {[%emt 0:00:18]} 6. cxd5 {[%emt 0:00:08]} exd5 {[%emt 0:00:05]} 7. a3 {[%emt 0:00:07]} Bd6 {[%emt 0:00:18]} 8. Qc2 {[%emt 0:00:06]} c6 {[%emt 0:00:16][%cal Bc7c6,Bc6c5,Bc5c4][%mdl 32]} 9. Nge2 {[%emt 0:00:10]} Re8 {[%emt 0:00:13]} 10. Bd2 {[%emt 0:00:08]} b6 {[%emt 0:00:25]} 11. f3 $1 {[%emt 0:01:37]} c5 {[%emt 0:00:41]} 12. g4 {[%emt 0:00:10] And now g5 would win.} c4 {[%emt 0:00:44]} 13. Bf5 {[%emt 0:00:06]} Bxf5 {[%emt 0:00:15]} 14. Qxf5 {[%emt 0:00:07][%cal Og4g5] aiming for g5!} g6 {[%emt 0:00:25]} 15. Qg5 {[%emt 0:00:06][%cal Oe2f4]} Nc6 {[%emt 0:00:34]} 16. O-O {[%emt 0:10:56][%cal Oe2f4]} Bf8 {[%emt 0:03:06]} 17. Qh4 {[%emt 0:00:07][%cal Oe3e4]} h6 {[%emt 0:00:42]} 18. Qf2 {[%emt 0:05:22]} Qd7 {[%emt 0:00:54]} 19. Qg2 {[%emt 0:15:07]} Bg7 {[%emt 0:10:33]} 20. Kh1 {[%emt 0:01:43]} b5 {[%emt 0:03:15]} 21. Rad1 {[%emt 0:03:26][%cal Oh2h3] The position is equal.} Rab8 {[%emt 0:04:46]} 22. g5 {[%emt 0:07:12]} hxg5 {[%emt 0:01:33] ...a5 is the strong threat.} 23. e4 $1 {[%emt 0:00:07]} dxe4 {[%emt 0:09:57]} 24. fxe4 {[%emt 0:00:53]} Qg4 {[%emt 0:04:03]} (24... Nxd4 $2 {loses.} 25. Bxg5 (25. Qxg5 $2 Nxe2 26. Nxe2 Nxe4 $19) (25. Be3 Qg4 $18) 25... Qg4 26. Qxg4 (26. Bxf6 Qxg2+ 27. Kxg2 Nxe2 $18) 26... Nxg4 27. Nxd4 $18) 25. Qxg4 {[%emt 0:11:16]} Nxg4 {[%emt 0:00:01]} 26. Bxg5 {[%emt 0:00:09]} Bh6 {[%emt 0:04:50]} 27. Bxh6 {[%emt 0:03:34]} Nxh6 {[%emt 0:00:02]} 28. Nd5 {[%emt 0:01:44] Nf6+ would now be deadly.} Kg7 {[%emt 0:12:40]} 29. Nec3 {[%emt 0:02:46]} b4 {[%emt 0:17:21]} 30. axb4 {[%emt 0:00:47]} Nxb4 {[%emt 0:00:03]} 31. Nxb4 {[%emt 0:02:12]} Rxb4 {[%emt 0:00:05] Weighted Error Value: White=0.03 (flawless) /Black=0.03 (flawless) .  Inaccurate:     	---       	Black=1      OK:         	White=11    	Black=13     Best:        	White=1     	Black=2      Strong:       	White=2     	---} 1/2-1/2

[Event "Austrian Bundesliga 2023-24"]
[Site "Austria"]
[Date "2024.03.24"]
[Round "11.21"]
[White "Livaic, Leon"]
[Black "Krassowizkij, Jaroslaw"]
[Result "1-0"]
[ECO "E06"]
[WhiteElo "2558"]
[BlackElo "2430"]
[Annotator "TA"]
[PlyCount "51"]
[EventDate "2023.10.21"]
[EventType "team-tourn"]
[EventCountry "AUT"]
[SourceTitle "playchess.com"]
[Source "ChessBase"]
[SourceQuality "1"]
[TimeControl "40/5400+30:1800+30"]

{[%evp 13,51,0,6,5,6,11,37,11,22,1,34,19,51,41,32,25,39,31,25,27,34,18,22,35,83,58,65,75,70,50,45,51,164,148,131,141,663,313,365,365]} 1. d4 {[%emt 0:00:13]} d5 {[%emt 0:00:04]} 2. c4 {[%emt 0:00:14]} e6 {[%emt 0:00:03]} 3. Nf3 {[%emt 0:00:07]} Nf6 {[%emt 0:00:04]} 4. g3 {[%emt 0:00:12]} Be7 {[%emt 0:00:13]} 5. Bg2 {[%emt 0:00:07]} O-O {[%emt 0:00:06]} 6. Nc3 {[%emt 0:00:09]} dxc4 {[%emt 0:01:03]} 7. Ne5 {[%emt 0:00:06]} Nc6 {[%emt 0:01:20]} 8. Bxc6 {[%emt 0:00:06]} (8. Nxc4 Qxd4 (8... Nxd4 9. Bf4 $11) 9. Qb3 Qc5 $17) 8... bxc6 {[%emt 0:00:02]} 9. Nxc6 {[%emt 0:00:09] Excellent horsemanship.} Qe8 {[%emt 0:00:06]} 10. Nxe7+ {[%emt 0:00:06] White is slightly better.} Qxe7 {[%emt 0:00:03]} 11. Qa4 {[%emt 0:00:12]} Nd5 {[%emt 0:00:43]} 12. Qxc4 {[%emt 0:01:09]} a5 {[%emt 0:00:07]} 13. Bd2 {[%emt 0:02:33]} (13. Nxd5 exd5 14. Qc5 (14. Qxd5 Re8 $11) 14... Qe6 $11) 13... Ba6 {[%emt 0:00:17]} 14. Qc5 {[%emt 0:00:43]} Qd7 {[%emt 0:00:23]} 15. f3 {[%emt 0:01:47]} (15. Qxa5 $2 Bb7 (15... Bxe2 16. Qc5 $17) 16. Qc5 (16. Qb5 $2 Bc6 $19) 16... Nxc3 $19) 15... Rfb8 {[%emt 0:20:58]} 16. b3 {[%emt 0:01:13]} (16. Qxa5 $2 Bb5 $19 (16... Rxb2 17. Nxd5 Qxd5 18. Qxd5 $11) (16... Rxb2 17. Qa3 $11)) 16... Rb6 {[%emt 0:36:10]} 17. Rc1 {[%emt 0:25:06]} (17. Qxa5 Bb7 18. Qc5 Rc6 $17) 17... Rc6 {[%emt 0:00:08]} 18. Qa3 {[%emt 0:00:50]} (18. Qxa5 Qe8 19. e4 Bd3 $19) 18... Nb6 {[%emt 0:01:51]} (18... Nb4 $14 19. Qxa5 (19. Be3 e5 $11) 19... Qxd4) 19. Ne4 {[%emt 0:15:08]} ({Reject} 19. Qxa5 Bxe2 (19... Qxd4 20. Qg5 $14) 20. Qg5 f6 $15 (20... Bxf3 21. O-O $15)) 19... Rxc1+ {[%emt 0:04:57]} 20. Qxc1 {[%emt 0:00:04]} Qxd4 {[%emt 0:03:09]} 21. Bc3 {[%emt 0:02:04]} (21. Qxc7 Qa1+ 22. Qc1 Qxa2 $17) 21... Qd5 {[%emt 0:05:21]} 22. Kf2 {[%emt 0:01:19]} Rd8 {[%emt 0:01:36]} (22... f6 $14) 23. Qf4 $40 {[%emt 0:03:00][%cal Of4g4][%mdl 128] [#] Hoping for Qg4! White has strong attack.} Qb5 {[%emt 0:04:51]} 24. Re1 {[%emt 0:01:25][%cal Oc3g7] Bxg7! would now be deadly. Active counter play!} h6 $2 {[%emt 0:09:07][%mdl 8192]} (24... Qh5 $16) 25. Qg4 {[%emt 0:10:12]} ({Weaker is} 25. Qxc7 Rc8 26. a4 Qxb3 $18) (25. Bxg7 $142 Kxg7 26. Qf6+ (26. Qxc7 $2 {too greedy.} Rc8 $19) 26... Kg8 27. Qxd8+ Kg7 28. Qxc7) 25... e5 {[%emt 0:00:18] [#]} 26. a4 $1 {[%emt 0:00:23] Weighted Error Value: White=0.26 (precise) /Black=0.53.  Loses game:     	---       	Black=1      Mistake:       	White=1     	Black=2      Inaccurate:     	---       	Black=2      OK:         	White=8     	Black=8      Best:        	---       	Black=1} 1-0

[Event "Austrian Bundesliga 2023-24"]
[Site "Austria"]
[Date "2024.03.24"]
[Round "11.22"]
[White "Richter, Nils"]
[Black "Bosiocic, Marin"]
[Result "1/2-1/2"]
[ECO "A06"]
[WhiteElo "2400"]
[BlackElo "2549"]
[Annotator "RC"]
[PlyCount "86"]
[EventDate "2023.10.21"]
[EventType "team-tourn"]
[EventCountry "AUT"]
[SourceTitle "playchess.com"]
[Source "ChessBase"]
[SourceQuality "1"]
[TimeControl "40/5400+30:1800+30"]

1. Nf3 {[%emt 0:00:02]} d5 {[%emt 0:00:08]} 2. e3 {[%emt 0:00:06]} Nf6 {[%emt 0:00:08]} 3. c4 {[%emt 0:00:07]} e6 {[%emt 0:00:05]} 4. Nc3 {[%emt 0:00:12]} Nbd7 {[%emt 0:00:27]} 5. b3 {[%emt 0:00:27]} b6 {[%emt 0:00:51]} 6. Bb2 {[%emt 0:01:07]} Bb7 {[%emt 0:00:12]} 7. cxd5 {[%emt 0:09:19]} exd5 {[%emt 0:00:21]} 8. g3 {[%emt 0:00:09]} d4 {[%emt 0:06:41]} 9. Nb5 {[%emt 0:01:08]} dxe3 {[%emt 0:01:07]} 10. fxe3 {[%emt 0:04:44]} a6 {[%emt 0:00:20]} 11. Nbd4 {[%emt 0:02:47]} c5 {[%emt 0:04:14]} 12. Nc2 {[%emt 0:06:32]} g6 {[%emt 0:00:45]} 13. Bg2 {[%emt 0:00:21]} Bg7 {[%emt 0:00:08]} 14. O-O {[%emt 0:00:27]} O-O {[%emt 0:00:07]} 15. Qe2 {[%emt 0:07:12]} a5 {[%emt 0:05:24]} 16. a4 {[%emt 0:07:52]} Ba6 {[%emt 0:01:25]} 17. d3 {[%emt 0:02:22]} Nd5 {[%emt 0:01:39]} 18. Bxg7 {[%emt 0:06:00]} Kxg7 {[%emt 0:00:12]} 19. Nfe1 {[%emt 0:01:33]} Ne5 {[%emt 0:04:26]} 20. Na3 {[%emt 0:02:12]} Ra7 {[%emt 0:00:52]} 21. Nc4 {[%emt 0:01:42]} Bxc4 {[%emt 0:01:05]} 22. dxc4 {[%emt 0:01:25]} Nf6 {[%emt 0:03:54]} 23. Nc2 {[%emt 0:09:37]} Re7 {[%emt 0:02:35]} 24. Rad1 {[%emt 0:01:54]} Qc7 {[%emt 0:00:11]} 25. Qf2 {[%emt 0:03:11]} Neg4 {[%emt 0:05:22]} 26. Qf3 {[%emt 0:02:56]} Re6 {[%emt 0:00:22]} 27. h3 {[%emt 0:03:24]} Ne5 {[%emt 0:00:14]} 28. Qf2 {[%emt 0:01:48]} Ned7 {[%emt 0:02:35]} 29. Qf4 {[%emt 0:02:14]} Re5 {[%emt 0:06:19]} 30. g4 {[%emt 0:01:54]} h6 {[%emt 0:04:36]} 31. Nd4 {[%emt 0:01:52]} Qc8 {[%emt 0:06:45]} 32. Nb5 {[%emt 0:02:58]} Qe8 {[%emt 0:01:17]} 33. Bc6 {[%emt 0:04:37]} Rxe3 {[%emt 0:22:22]} 34. Bxd7 {[%emt 0:01:09]} Qe7 {[%emt 0:00:03]} 35. Rd6 {[%emt 0:04:17]} Nh7 {[%emt 0:01:25]} 36. Bc6 {[%emt 0:02:25]} Ng5 {[%emt 0:02:18]} 37. Qf6+ {[%emt 0:03:07]} Qxf6 {[%emt 0:00:17]} 38. Rdxf6 {[%emt 0:00:19]} Rxh3 {[%emt 0:01:02]} 39. Nd6 {[%emt 0:02:26]} Rg3+ {[%emt 0:01:38]} 40. Kh2 {[%emt 0:00:00]} Rxg4 {[%emt 0:00:00]} 41. Bd5 {[%emt 0:06:41]} h5 {[%emt 0:02:12]} 42. Bxf7 {[%emt 0:03:39]} Rh4+ {[%emt 0:01:26]} 43. Kg2 {[%emt 0:00:33]} Rg4+ 1/2-1/2

[Event "Austrian Bundesliga 2023-24"]
[Site "Austria"]
[Date "2024.03.24"]
[Round "11.24"]
[White "Ferk, Martin"]
[Black "Rogic, Davor"]
[Result "0-1"]
[ECO "D52"]
[WhiteElo "1912"]
[BlackElo "2418"]
[Annotator "TA"]
[PlyCount "68"]
[EventDate "2023.10.21"]
[EventType "team-tourn"]
[EventCountry "AUT"]
[SourceTitle "playchess.com"]
[Source "ChessBase"]
[SourceQuality "1"]
[TimeControl "40/5400+30:1800+30"]

{[%evp 13,68,-16,-1,-14,-18,-68,-75,-72,-76,-62,-60,-97,-106,-104,-110,-118,-97,-114,-38,-31,-21,-25,-20,-81,-51,-105,-105,-103,-103,-137,-96,-141,-131,-171,-132,-146,-121,-121,-116,-121,-108,-105,-116,-170,-68,-167,-52,-121,-113,-114,-76,-127,-124,-135,-83,-86,-78]} 1. d4 {[%emt 0:00:03]} d5 {[%emt 0:00:13]} 2. c4 {[%emt 0:00:12]} e6 {[%emt 0:00:07]} 3. Nc3 {[%emt 0:00:10]} Nf6 {[%emt 0:00:08]} 4. Bg5 {[%emt 0:00:20]} c6 {[%emt 0:00:51]} 5. e3 {[%emt 0:00:36]} Nbd7 {[%emt 0:00:29]} 6. Nf3 {[%emt 0:00:42]} Qa5 {[%emt 0:00:30]} 7. Qc2 {[%emt 0:04:07]} Ne4 {[%emt 0:02:07]} 8. Bh4 {[%emt 0:00:53]} Bb4 {[%emt 0:01:09]} 9. Rc1 {[%emt 0:01:18]} (9. a3 $11) 9... Qxa2 $15 {[%emt 0:01:34] Black is more active.} 10. cxd5 {[%emt 0:03:05]} exd5 {[%emt 0:05:52]} 11. Bd3 {[%emt 0:01:50]} Nxc3 {[%emt 0:02:05]} (11... f5 {keeps more tension.} 12. Ng5 Bxc3+ 13. bxc3 Qxc2 14. Rxc2 Nf8) 12. bxc3 {[%emt 0:00:25]} Qxc2 {[%emt 0:00:07]} 13. Rxc2 {[%emt 0:00:08]} Bd6 {[%emt 0:04:43]} 14. O-O {[%emt 0:00:07]} O-O {[%emt 0:00:58]} 15. Nd2 {[%emt 0:00:40]} Re8 {[%emt 0:21:25]} ({Black should play} 15... b5 $17 16. e4 Nb6) 16. c4 {[%emt 0:03:05]} dxc4 {[%emt 0:18:09]} 17. Nxc4 {[%emt 0:01:35]} Bc7 {[%emt 0:01:05]} 18. e4 {[%emt 0:04:13]} (18. Ra1 $11 {remains equal.}) 18... Nb6 {[%emt 0:06:40]} 19. Ne3 {[%emt 0:03:19] [#]} (19. Bg3 $1 $15 Bxg3 20. fxg3) 19... Bd8 $1 $36 {[%emt 0:02:36][%mdl 2048] Black is in control.} 20. Bg3 {[%emt 0:01:59]} Be6 {[%emt 0:00:47]} 21. f4 {[%emt 0:03:43] [#]} f5 $1 {[%emt 0:05:24][%mdl 512]} 22. e5 {[%emt 0:05:30]} (22. Nxf5 Bxf5) 22... g6 {[%emt 0:00:45]} 23. Rb1 {[%emt 0:02:06]} Re7 {[%emt 0:00:53]} 24. Bf2 {[%emt 0:06:22]} Nd5 {[%emt 0:05:02]} 25. Nxd5 {[%emt 0:06:01]} Bxd5 {[%emt 0:00:06]} ({But not} 25... cxd5 $6 26. Bh4 Rf7 27. Bxd8 Rxd8 28. Ra1 $11) 26. Bh4 {[%emt 0:00:50]} Rd7 {[%emt 0:02:34]} 27. Bxd8 {[%emt 0:01:21]} Raxd8 {[%emt 0:00:26]} 28. Rcb2 {[%emt 0:01:45]} (28. Bc4 $17 {was worth a try.}) 28... b6 {[%emt 0:01:18]} (28... b5 $19 {White must now prevent ...a5.} 29. Ra1 Bf7) 29. Rc1 {[%emt 0:00:46] [#]} (29. Ra1 $1 $15) 29... Rc7 {[%emt 0:05:09]} (29... b5 $1 $19 {And now ...a5 would win.} 30. Ra1 Bf7) 30. Bc4 {[%emt 0:03:24]} (30. Kf2 $15) 30... Kf7 {[%emt 0:01:27]} 31. Kf2 {[%emt 0:02:37]} Ke7 {[%emt 0:02:00]} 32. Bxd5 {[%emt 0:01:18]} (32. Bd3 $142) 32... Rxd5 {[%emt 0:00:07]} 33. Ke3 {[%emt 0:00:17]} c5 {[%emt 0:03:07]} ({Black should try} 33... Kd7 34. h3 Ra5) 34. dxc5 {[%emt 0:01:02]} Rdxc5 {[%emt 0:00:11] Weighted Error Value: White=0.26 (precise) /Black=0.24 (precise) .  Mistake:       	White=7     	Black=4      Inaccurate:     	White=4     	Black=2      OK:         	White=5     	Black=5      Best:        	White=3     	Black=1      Strong:       	---       	Black=1} 0-1